bitfinex-derivatives/quotes_ETHF0:USTF0_20251211
["timestamp","ask_amount","ask_price","bid_price","bid_amount"]
[1765421307493,1.12125578,3210.6,3209.8,0.15574]
[1765421307793,1.12125578,3210.5,3209.8,0.15574]
[1765421307986,1.12125578,3210.4,3209.8,0.15574]
[1765421308189,0.00235712,3210.7,3209.8,0.15574]
[1765421308389,1.12116558,3210.6,3209.8,0.15574]
[1765421308589,1.12116558,3210.5,3209.8,0.15574]
[1765421308887,1.12116558,3210.4,3209.8,0.15574]
[1765421309091,0.00235712,3210.7,3209.8,0.15574]
[1765421309288,2.4161,3209.9,3209.8,0.15574]
[1765421309490,2.4161,3209.9,3209.0,0.8117]
[1765421309491,2.4161,3209.9,3209.1,0.15577]
[1765421309686,2.3876,3209.2,3209.1,0.15577]
[1765421312498,1.62363896,3210.4,3209.2,0.15577]
[1765421312691,1.1541,3209.3,3209.2,0.15577]
[1765421313494,1.1541,3209.3,3209.2,1.43927]
[1765421314288,1.1279,3209.3,3209.2,2.67927]
[1765421314491,1.62363896,3210.4,3209.2,2.67927]
[1765421314693,1.12145162,3210.3,3209.5,3.2869]
[1765421314890,1.12145162,3210.2,3209.5,3.2869]
[1765421315091,1.12145162,3210.1,3209.7,0.15574]
[1765421315288,1.12145162,3210.0,3209.7,0.15574]
[1765421315484,1.1148,3210.1,3210.0,0.7634]
[1765421315788,0.00235712,3210.7,3210.2,1.43922]
[1765421315992,1.1148,3210.4,3210.3,0.15572]
[1765421316489,0.00235712,3210.7,3210.6,1.2835]
[1765421316890,1.10415712,3210.7,3210.6,1.2835]
[1765421317388,1.10415712,3210.7,3210.5,0.7634]
[1765421317590,1.62363896,3212.0,3211.0,0.7634]
[1765421317788,1.12082248,3211.9,3211.1,0.15567]
[1765421317991,2.1778,3211.2,3211.1,0.15567]
[1765421318193,1.0759,3210.6,3210.5,0.7634]
[1765421318392,2.1518,3210.4,3210.3,0.15571]
[1765421318595,2.15574205,3210.4,3210.3,0.15802793]
[1765421319594,1.06814205,3210.4,3210.3,1.58704665]
[1765421319794,1.06814205,3210.4,3210.3,1.44152793]
[1765421320595,2.11944205,3210.4,3210.3,0.15802793]
[1765421320797,0.00394205,3210.4,3210.3,1.44152793]
[1765421320997,2.10654205,3210.4,3210.3,0.15802793]
[1765421321194,2.10654205,3210.4,3210.3,0.00231793]
[1765421321695,3.22771502,3210.4,3210.3,0.00231793]
[1765421322398,2.10654205,3210.4,3210.3,0.00231793]
[1765421323285,1.05524205,3210.4,3210.3,0.00231793]
[1765421323488,0.00394205,3210.4,3210.3,2.68153793]
[1765421324892,2.0008,3211.1,3211.0,0.15568]
[1765421325799,0.0028784,3211.1,3211.0,1.43918]
[1765421326508,1.9669784,3211.1,3211.0,0.15568]
[1765421326697,1.9669784,3211.1,3210.6,0.7634]
[1765421326698,0.9763,3210.4,3210.3,0.00231793]
[1765421326897,0.9763,3210.4,3210.3,1.28581793]
[1765421327198,0.0028784,3211.1,3210.3,1.44152793]
[1765421327599,0.0028784,3211.1,3210.5,0.7634]
[1765421328705,0.0028784,3211.1,3210.6,0.1557]
[1765421330000,0.0028784,3211.1,3211.0,3.2869]
[1765421330305,0.0028784,3211.1,3211.0,3.44258]
[1765421331802,1.12081047,3212.1,3211.3,0.15566]
[1765421332106,3.853,3213.3,3211.0,0.7634]
[1765421332107,1.12081047,3212.0,3211.9,2.5235]
[1765421332299,0.1886,3213.0,3212.0,0.7634]
[1765421332608,1.12055145,3212.9,3212.0,0.91903]
[1765421332807,1.12055145,3212.8,3212.1,0.15563]
[1765421333005,0.0024143,3212.9,3212.5,0.7634]
[1765421333204,1.7796,3212.6,3212.5,0.7634]
[1765421333506,1.7796,3212.4,3212.3,0.15562]
[1765421333706,0.0024143,3212.9,3212.4,0.7634]
[1765421334108,1.7796,3212.5,3212.4,0.7634]
[1765421334811,0.0024143,3212.9,3212.4,2.0469]
[1765421335012,0.8800143,3212.9,3212.4,0.91901]
[1765421335210,0.8800143,3212.9,3212.8,1.2835]
[1765421335516,0.8800143,3212.9,3212.8,1.28671631]
[1765421335811,0.0024143,3212.9,3212.8,2.52671631]
[1765421337116,1.12020848,3214.3,3213.0,0.7634]
[1765421337412,1.12020848,3214.3,3213.3,0.00467137]
[1765421337614,0.8411,3213.4,3213.3,0.00467137]
[1765421337815,0.8411,3213.4,3213.3,1.28817137]
[1765421338317,0.00268291,3213.4,3213.3,2.41937137]
[1765421338810,6.53249,3214.9,3213.3,2.41937137]
[1765421339016,1.11993629,3214.8,3213.3,2.41937137]
[1765421339217,1.636,3213.4,3213.3,0.00467137]
[1765421339419,1.63941587,3214.7,3213.3,1.15737137]
[1765421339717,1.12001363,3214.6,3213.3,1.15737137]
[1765421340624,1.6244,3213.4,3213.3,0.00467137]
[1765421341315,0.15551,3214.5,3213.3,1.15737137]
[1765421341516,0.00220666,3214.7,3213.3,1.31294137]
[1765421341715,0.7944,3213.4,3213.3,1.31294137]
[1765421341919,0.7944,3213.4,3213.3,0.16024137]
[1765421342523,1.11996233,3214.3,3213.3,2.44414137]
[1765421342726,1.11996233,3214.2,3213.3,2.44414137]
[1765421342923,2.68496233,3214.1,3214.0,0.7159]
[1765421345220,1.4938,3213.6,3213.5,0.7159]
[1765421345427,1.4938,3213.4,3213.3,0.00467137]
[1765421345627,2.61376233,3213.4,3213.3,0.00467137]
[1765421346915,1.85506233,3213.4,3213.3,1.15737137]
[1765421347118,1.707,3212.9,3212.0,0.7159]
[1765421347428,1.707,3212.1,3212.0,0.7159]
[1765421347725,1.11996233,3212.1,3212.0,1.8686]
[1765421347923,2.82696233,3212.1,3211.5,0.7159]
[1765421348226,1.7173,3211.6,3211.5,0.72433874]
[1765421348628,0.8535,3211.6,3211.5,0.72433874]
[1765421349022,0.00467137,3211.9,3211.8,2.2839]
[1765421349321,1.12518385,3211.9,3211.8,2.2839]
[1765421350113,1.12518385,3211.9,3211.8,2.43954]
[1765421350723,2.81058385,3211.9,3211.8,0.15564]
[1765421350921,2.81058385,3211.9,3211.5,0.00843874]
[1765421350922,1.6854,3211.6,3211.5,0.00843874]
[1765421351125,2.80591248,3211.6,3211.5,0.00843874]
[1765421351822,0.8311,3210.6,3210.1,0.15572]
[1765421352126,2.78271248,3210.6,3210.1,0.15572]
[1765421352822,2.78271248,3210.6,3210.5,0.71896963]
[1765421353422,1.95161248,3210.6,3210.5,0.71896963]
[1765421354428,1.12051248,3210.6,3210.5,2.86796963]
[1765421354635,0.70083356,3210.6,3210.5,3.02367963]
[1765421354822,1.62123159,3211.5,3211.2,0.6579]
[1765421355323,0.00467137,3211.9,3211.5,1.0853]
[1765421355324,1.62123159,3211.6,3211.5,1.0853]
[1765421355525,2.1688,3211.3,3211.0,0.15568]
[1765421355821,1.0739,3211.3,3211.0,0.15568]
[1765421356028,1.62123159,3211.6,3211.2,1.7432]
[1765421356733,1.62123159,3211.6,3211.5,1.0853]
[1765421356921,1.0739,3211.6,3211.2,0.81357]
[1765421357429,1.62123159,3211.8,3211.5,1.0853]
[1765421358132,5.47423159,3211.8,3211.5,1.0853]
[1765421358336,0.00467137,3211.9,3211.8,2.8069]
[1765421359432,1.07857137,3211.9,3211.8,0.6579]
[1765421359627,2.1688,3211.8,3211.7,0.15564]
[1765421360028,1.0739,3211.3,3211.2,0.6579]
[1765421360327,2.1688,3211.3,3211.2,0.6579]
[1765421360536,1.0739,3211.3,3211.2,0.6579]
[1765421360739,0.00467137,3211.9,3211.8,2.8069]
[1765421361432,0.00467137,3211.9,3211.8,2.96254]
[1765421363544,2.17970254,3212.9,3212.5,1.0853]
[1765421363545,1.62123159,3212.6,3212.5,1.0853]
[1765421363841,1.62123159,3212.8,3212.5,2.149]
[1765421364344,1.62123159,3212.9,3212.5,2.149]
[1765421364542,1.62445216,3212.9,3212.5,2.149]
[1765421364743,0.00322057,3212.9,3212.8,2.30459]
[1765421365040,2.17202057,3212.9,3212.8,0.00283652]
[1765421365353,3.79325216,3212.9,3212.8,0.00283652]
[1765421365644,1.07712057,3212.9,3212.8,1.08813652]
[1765421365846,1.07712057,3212.9,3212.8,0.00283652]
[1765421366047,3.79325216,3212.9,3212.8,0.00283652]
[1765421366845,4.91364312,3212.9,3212.8,0.00283652]
[1765421368152,2.1688,3212.5,3212.4,0.00467137]
[1765421368346,3.28919096,3212.5,3212.4,0.00467137]
[1765421368547,1.12039096,3212.5,3212.4,2.85897137]
[1765421368947,1.12039096,3212.5,3212.4,2.86215604]
[1765421370847,2.23439096,3212.5,3212.4,0.65895604]
[1765421371053,2.23439096,3212.5,3212.4,1.70595604]
[1765421371253,1.12039096,3212.5,3212.4,3.01776604]
[1765421371953,3.30749096,3212.5,3212.4,0.00785604]
[1765421372652,3.30749096,3212.5,3211.8,0.6579]
[1765421372854,1.12039096,3212.4,3211.8,0.6579]
[1765421373054,1.12039096,3212.3,3211.8,0.81354]
[1765421373353,2.23439096,3212.2,3212.1,1.047]
[1765421373555,2.23439096,3212.2,3212.1,1.04980086]
[1765421373756,2.23439096,3212.2,3212.1,2.20600086]
[1765421373955,3.30749096,3212.2,3212.1,0.00280086]
[1765421374257,1.12039096,3212.2,3212.1,2.20600086]
[1765421374750,0.00322057,3212.9,3212.2,0.15562]
[1765421374954,1.12037296,3212.8,3212.2,0.15562]
[1765421375252,2.1871,3212.3,3212.2,0.15562]
[1765421375554,1.12037296,3212.3,3212.2,2.35882]
[1765421375755,0.00322057,3212.9,3212.2,2.35882]
[1765421375951,1.1203367,3212.8,3212.2,2.35882]
[1765421376254,1.1203367,3212.8,3212.1,0.00280086]
[1765421376255,2.1871,3212.6,3212.5,0.6511]
[1765421376454,3.3074367,3212.6,3212.5,0.6511]
[1765421377549,2.1871,3212.2,3212.1,0.00280086]
[1765421378154,1.114,3212.2,3212.1,1.04980086]
[1765421378455,0.00322057,3212.9,3212.1,2.20600086]
[1765421378656,1.12039299,3212.8,3212.3,0.15562]
[1765421378856,2.1871,3212.6,3212.5,0.6511]
[1765421379156,2.1871,3212.4,3212.3,0.15562]
[1765421379355,3.30749299,3212.4,3212.3,0.15562]
[1765421382252,1.12039299,3212.4,3212.3,1.20262]
[1765421382453,2.1871,3212.4,3212.3,0.15562]
[1765421383354,3.30755692,3212.4,3212.3,0.15562]
[1765421383865,2.1871,3212.2,3212.1,0.00280086]
[1765421384263,3.30760758,3212.2,3212.1,0.00280086]
[1765421385565,3.30760758,3212.2,3212.1,1.04980086]
[1765421385965,1.114,3212.2,3212.1,1.04980086]
[1765421386464,1.114,3212.2,3212.1,2.20600086]
[1765421386860,3.30755175,3212.2,3212.1,0.00280086]
[1765421387060,2.23445175,3212.2,3212.1,0.00280086]
[1765421387269,1.12045175,3212.2,3212.1,0.00280086]
[1765421387569,2.23445175,3212.2,3212.1,1.04980086]
[1765421387969,3.30755175,3212.2,3212.1,0.00280086]
[1765421390364,1.12045175,3212.2,3212.1,2.36163086]
[1765421390570,1.12045175,3212.2,3212.1,0.15843086]
[1765421390571,3.30755175,3212.2,3212.1,0.15843086]
[1765421390970,3.30755175,3212.2,3212.1,0.00280086]
[1765421392066,2.23445175,3212.2,3212.1,1.047]
[1765421392668,1.12045175,3212.2,3212.1,2.2032]
[1765421393067,0.00322057,3212.9,3212.3,0.15562]
[1765421393269,1.12032712,3212.8,3212.3,0.15562]
[1765421393469,1.114,3212.6,3212.5,1.6981]
[1765421393668,1.114,3212.6,3212.5,2.8543]
[1765421393669,2.23432712,3212.6,3212.5,2.8543]
[1765421394071,2.1871,3212.5,3212.4,0.15561]
[1765421394274,3.30742712,3212.5,3212.4,0.15561]
[1765421394669,1.12032712,3212.5,3212.4,2.35881]
[1765421395072,0.00322057,3212.9,3212.5,0.6511]
[1765421395370,1.12029565,3212.8,3212.7,2.3588]
[1765421395571,0.00322057,3212.9,3212.8,2.35879]
[1765421396278,0.00467137,3213.0,3212.9,2.35879]
[1765421396974,1.6271818,3214.2,3213.5,0.6511]
[1765421397174,2.23392803,3214.1,3214.0,0.6511]
[1765421397369,3.30702803,3214.1,3214.0,0.6511]
[1765421397673,1.114,3213.8,3213.7,1.20255]
[1765421398069,1.114,3213.8,3213.7,2.35875]
[1765421398274,1.114,3213.8,3213.7,1.20255]
[1765421398571,0.00369555,3214.2,3213.7,1.20255]
[1765421398572,5.55e-06,3214.2,3214.1,2.15243]
[1765421398778,1.6271818,3216.5,3215.5,0.73756]
[1765421398976,1.11933524,3216.4,3216.3,1.9969]
[1765421399179,0.0633,3216.7,3216.6,0.5821]
[1765421399473,3.73725211,3218.2,3216.6,1.556]
[1765421399474,1.6271818,3218.1,3216.6,1.556]
[1765421399674,0.1266,3217.1,3217.0,0.00466367]
[1765421400070,1.11877657,3217.9,3217.0,0.97856367]
[1765421400271,0.00232548,3218.1,3217.3,0.15537]
[1765421400466,0.4644,3217.1,3216.6,0.58513751]
[1765421400774,0.4644,3216.7,3216.6,0.00303751]
[1765421401078,0.4644,3216.1,3215.4,0.15547]
[1765421401568,0.4424,3215.5,3214.8,0.5821]
[1765421401874,0.4424,3214.9,3214.8,0.58676367]
[1765421402079,0.44574877,3214.9,3214.8,0.58958325]
[1765421402274,0.22454877,3214.9,3214.8,0.58958325]
[1765421402470,0.00334877,3214.9,3214.8,1.56348325]
[1765421402671,0.21474877,3214.9,3214.8,0.58958325]
[1765421402872,0.4228,3214.3,3214.2,0.5821]
[1765421403365,0.2114,3214.3,3214.2,0.5821]
[1765421403575,0.00334877,3214.9,3214.2,0.5821]
[1765421403776,0.2005,3214.3,3214.2,0.5821]
[1765421404777,0.1908,3214.0,3213.9,0.00466367]
[1765421404972,0.3816,3214.0,3213.9,0.00466367]
[1765421406482,0.00466367,3214.3,3213.9,0.00466367]
[1765421406682,0.00466367,3214.3,3214.2,0.5821]
[1765421407285,0.00466367,3214.3,3214.2,2.73453]
[1765421407684,0.00466367,3214.3,3214.2,0.73763]
[1765421407885,0.16296367,3214.3,3214.2,0.73763]
[1765421408184,0.32126367,3214.3,3214.2,0.73763]
[1765421408381,0.00466367,3214.3,3214.2,2.73453]
[1765421408780,0.00466367,3214.3,3214.2,1.71153]
[1765421409087,0.15216367,3214.3,3214.2,0.73763]
[1765421409283,0.00466367,3214.3,3214.2,0.73763]
[1765421409586,0.00466367,3214.3,3214.2,2.73453]
[1765421410576,0.25686367,3214.3,3214.2,0.5821]
[1765421410776,0.2522,3213.7,3213.0,0.5821]
[1765421411082,0.1261,3213.1,3213.0,0.5821]
[1765421411787,2.125,3213.9,3213.0,0.5821]
[1765421411988,6.75503196,3213.8,3213.0,0.5821]
[1765421412187,1.12003196,3213.7,3213.0,0.5821]
[1765421412488,1.12003196,3213.6,3213.0,0.5821]
[1765421412788,1.12003196,3213.5,3213.0,0.5821]
[1765421412988,0.1146,3213.1,3213.0,0.5821]
[1765421413280,1.12002899,3213.7,3213.0,0.73768]
[1765421413480,1.12002899,3213.6,3213.0,0.73768]
[1765421413688,4.95,3214.1,3213.0,0.73768]
[1765421413892,1.12001898,3214.0,3213.0,0.73768]
[1765421414082,1.63184547,3214.3,3213.6,0.5851]
[1765421414083,0.0836,3213.7,3213.6,0.5851]
[1765421414292,0.1672,3213.7,3213.6,0.5851]
[1765421414877,0.1672,3213.5,3213.4,0.15556]
[1765421415278,1.11998302,3213.8,3213.6,0.5851]
[1765421415482,0.00466367,3214.3,3213.6,0.5851]
[1765421415686,1.11991178,3214.2,3213.6,0.5851]
[1765421415885,1.11991178,3214.1,3213.6,0.74065]
[1765421416091,0.06726367,3214.3,3214.2,0.5851]
[1765421416487,0.00466367,3214.3,3214.2,0.5851]
[1765421416687,0.00466367,3214.3,3214.2,2.78953]
[1765421417086,0.10886367,3214.3,3214.2,0.74063]
[1765421417384,0.10886367,3214.3,3214.2,0.5851]
[1765421417785,0.00466367,3214.3,3214.2,0.5851]
[1765421417981,0.10886367,3214.3,3214.2,0.5851]
[1765421418178,0.05676367,3214.3,3214.2,0.5851]
[1765421418580,0.09846367,3214.3,3214.2,0.5851]
[1765421418782,0.00466367,3214.3,3214.2,2.78953]
[1765421419385,0.00466367,3214.3,3214.2,1.74733]
[1765421419589,0.00466367,3214.3,3214.2,0.74063]
[1765421419788,0.03596367,3214.3,3214.2,0.74063]
[1765421420090,0.00466367,3214.3,3214.2,1.74733]
[1765421420294,0.00466367,3214.3,3214.2,0.74063]
[1765421420789,0.00466367,3214.3,3214.2,2.78953]
[1765421422888,0.00334877,3214.9,3214.8,2.7895]
[1765421424695,0.00334877,3214.9,3214.8,0.7406]
[1765421424996,1.12275969,3214.9,3214.8,0.7406]
[1765421425288,1.12275969,3214.9,3214.8,0.1555]
[1765421425889,2.74994149,3214.9,3214.5,0.00466367]
[1765421426196,2.7539582,3214.8,3214.5,0.00466367]
[1765421426489,2.7539582,3214.7,3214.5,0.00466367]
[1765421426688,1.11941092,3214.6,3214.5,0.00466367]
[1765421428899,2.7539582,3214.6,3214.2,0.5851]
[1765421429096,1.11941092,3214.5,3214.2,0.5851]
[1765421429297,3.29911346,3214.4,3214.2,0.5851]
[1765421429496,1.11941092,3214.3,3214.2,0.5851]
[1765421430297,1.11941092,3214.3,3214.2,2.65453]
[1765421430998,1.11941092,3214.3,3214.2,0.74063]
[1765421431196,1.11941092,3214.3,3214.2,2.59733]
[1765421432390,2.75663648,3214.3,3214.2,0.74063]
[1765421434396,1.11941092,3214.3,3214.2,0.74063]
[1765421434598,2.75663648,3214.3,3214.2,0.74063]
[1765421435406,1.11941092,3214.3,3214.2,0.74063]
[1765421437499,1.11941092,3214.3,3214.2,1.69013]
[1765421438702,1.11941092,3214.3,3214.2,2.59733]
[1765421440600,0.00334877,3214.9,3214.8,2.0122]
[1765421440803,1.12279799,3214.9,3214.8,2.0122]
[1765421442005,0.00334877,3214.9,3214.8,2.0122]
[1765421443006,0.00334877,3214.9,3214.8,2.27097658]
[1765421443307,0.00334877,3214.9,3214.8,2.0122]
[1765421444207,1.63722556,3216.0,3215.5,0.5464]
[1765421444406,1.11923439,3215.9,3215.8,0.9495]
[1765421444602,1.11923439,3215.9,3215.5,0.5464]
[1765421444803,1.11923439,3215.8,3215.7,1.8567]
[1765421445109,1.12233573,3215.8,3215.7,1.85895439]
[1765421445608,1.12233573,3215.8,3215.7,0.95175439]
[1765421446110,1.12233573,3215.8,3215.7,1.85895439]
[1765421446709,1.12233573,3215.8,3215.7,0.00225439]
[1765421449808,7.12233573,3215.8,3215.7,0.00225439]
[1765421450007,1.12233573,3215.8,3215.7,0.00225439]
[1765421452111,2.76105637,3215.8,3215.7,0.00225439]
[1765421452413,1.12233573,3215.8,3215.7,0.00225439]
[1765421453512,2.75947009,3215.8,3215.7,0.00225439]
[1765421454113,1.12233573,3215.8,3215.7,0.00225439]
[1765421454513,0.75947009,3215.9,3215.7,0.00225439]
[1765421454708,12.45266367,3216.1,3215.7,0.00225439]
[1765421455407,12.4557337,3216.1,3215.7,0.00225439]
[1765421458814,0.0077337,3216.1,3215.7,0.00225439]
[1765421459114,7.91,3216.0,3215.7,0.00225439]
[1765421459310,0.0077337,3216.1,3215.7,0.00225439]
[1765421459508,12.447,3215.9,3215.7,0.00225439]
[1765421460410,0.0077337,3216.1,3216.0,0.5922]
[1765421460713,0.0077337,3216.1,3215.7,0.00225439]
[1765421460915,1.63528692,3215.6,3215.4,0.00466367]
[1765421461109,11.418,3215.5,3215.4,0.00466367]
[1765421461710,20.53,3215.5,3214.0,0.74773]
[1765421461910,20.53,3215.5,3215.4,0.00349974]
[1765421461911,14.53,3215.5,3215.4,0.00349974]
[1765421462111,14.89437337,3215.5,3214.0,0.74773]
[1765421462307,2.1819407,3215.2,3214.0,0.5922]
[1765421462508,5.2939407,3215.2,3214.0,0.5922]
[1765421462713,5.2939407,3215.2,3214.5,0.55106367]
[1765421462913,4.74728692,3215.0,3214.5,0.00466367]
[1765421464212,2.1819407,3215.2,3214.5,0.59686367]
[1765421464415,3.112,3215.2,3214.5,0.59686367]
[1765421465117,5.2939407,3215.6,3214.5,1.56276367]
[1765421465317,15.559,3215.5,3214.5,1.56276367]
[1765421465615,0.36473199,3215.4,3214.5,1.56276367]
[1765421465811,17.7409407,3215.5,3214.5,1.56276367]
[1765421466012,0.36478729,3215.4,3214.5,1.56276367]
[1765421466212,15.559,3215.5,3214.5,1.56276367]
[1765421466419,4.23173152,3215.4,3214.5,1.56276367]
[1765421466712,1.11973152,3215.3,3214.5,1.56276367]
[1765421466913,1.11973152,3215.2,3214.5,1.56276367]
[1765421467113,1.11973152,3215.1,3214.5,1.56276367]
[1765421467316,1.11973152,3215.0,3214.5,0.59686367]
[1765421467512,1.11973152,3214.9,3214.5,0.59686367]
[1765421467716,1.11973152,3214.8,3214.5,0.59686367]
[1765421467913,1.11973152,3214.7,3214.5,0.59686367]
[1765421468113,1.11973152,3214.6,3214.5,0.59686367]
[1765421470214,1.11973152,3214.6,3214.5,2.45446367]
[1765421470817,1.11973152,3214.6,3214.5,0.59686367]
[1765421474216,1.11973152,3214.6,3214.5,1.49686367]
[1765421474825,1.11973152,3214.6,3214.5,0.59686367]
[1765421475219,1.11973152,3214.6,3214.0,0.5922]
[1765421475425,1.63528692,3214.2,3213.5,1.4922]
[1765421475718,1.11973152,3214.1,3213.5,1.4922]
[1765421476024,1.11973152,3214.0,3213.5,1.4922]
[1765421476324,1.11973152,3213.9,3213.8,1.7917]
[1765421479520,0.00466367,3214.1,3213.8,1.7917]
[1765421479726,0.00466367,3214.1,3214.0,2.3578]
[1765421480330,0.00466367,3214.1,3214.0,8.3578]
[1765421481326,1.11968518,3214.7,3214.6,1.7917]
[1765421482223,1.11968518,3214.7,3214.6,7.7917]
[1765421482625,1.11968518,3214.7,3214.6,1.7917]
[1765421484028,1.11968518,3214.7,3214.6,0.9]
[1765421484420,1.1197153,3214.7,3214.6,0.9]
[1765421484621,1.1197153,3214.7,3214.0,0.5661]
[1765421484919,1.63816875,3214.3,3214.0,0.5661]
[1765421485122,2.75788405,3214.2,3214.0,0.5661]
[1765421485428,1.1197153,3214.1,3214.0,0.5661]
[1765421485628,1.1197153,3214.1,3213.4,0.00466367]
[1765421485824,1.1197153,3214.0,3213.4,0.00466367]
[1765421486021,1.63816875,3213.8,3213.4,0.00466367]
[1765421486228,1.1197153,3213.7,3213.4,0.00466367]
[1765421486426,1.1197153,3213.6,3213.5,2.3839]
[1765421487133,1.1197153,3213.6,3213.5,1.4922]
[1765421487833,2.75788405,3213.6,3213.5,0.5922]
[1765421490135,1.1197153,3213.6,3213.5,0.5922]
[1765421491937,1.1197153,3213.6,3213.4,0.00466367]
[1765421492234,1.1197153,3213.5,3213.4,0.00466367]
[1765421496242,9.301656,3213.5,3213.4,0.00466367]
[1765421496549,8.78163123,3215.9,3213.4,0.00466367]
[1765421496550,1.6367803,3214.4,3213.5,6.0]
[1765421496734,0.5039,3214.5,3214.2,0.15553]
[1765421497040,0.12867286,3214.5,3214.2,0.15553]
[1765421497245,0.12867286,3214.5,3214.4,0.15552]
[1765421497537,0.08973,3215.0,3214.9,0.15549]
[1765421497732,0.08973,3215.0,3214.9,2.05790348]
[1765421497733,0.00267174,3215.0,3214.9,2.05790348]
[1765421497937,3.67e-06,3215.3,3215.2,0.15548]
[1765421498126,0.5039,3216.6,3215.9,0.15544]
[1765421498331,0.5039,3217.8,3216.5,1.90241348]
[1765421498533,0.5039,3217.8,3217.3,0.15537]
[1765421498733,0.5039,3217.8,3217.7,1.90241348]
[1765421498932,2.90481052,3217.8,3217.3,0.00229567]
[1765421500738,0.5039,3215.8,3215.6,1.90241348]
[1765421501642,0.5039,3215.8,3215.6,6.0]
[1765421501838,0.5039,3215.8,3215.6,6.00390078]
[1765421506151,0.5039,3215.8,3215.7,0.15545]
[1765421506346,0.5039,3215.8,3215.7,6.15545]
[1765421506756,0.5039,3215.8,3215.6,0.00390078]
[1765421507354,0.5039,3215.8,3215.7,0.15545]
[1765421508462,0.5039,3215.8,3215.7,6.15545]
[1765421508963,0.5039,3215.8,3215.7,0.15545]
[1765421509263,2.3016,3215.8,3215.7,0.15545]
[1765421509653,1.4256,3215.8,3215.7,0.15545]
[1765421510353,4.69985387,3215.8,3215.6,0.00390078]
[1765421510553,1.7977,3215.5,3215.4,0.00466367]
[1765421510957,4.19595387,3215.5,3215.4,0.00466367]
[1765421511560,1.7977,3215.1,3215.0,0.15549]
[1765421511959,0.5039,3214.8,3214.4,1.90241348]
[1765421512162,1.7977,3214.5,3214.4,1.90241348]
[1765421512362,0.9217,3214.5,3214.4,1.90241348]
[1765421512861,1.7977,3214.5,3214.4,1.90241348]
[1765421513265,0.9217,3214.5,3214.4,1.90241348]
[1765421513464,0.5039,3214.8,3214.4,1.90241348]
[1765421513764,2.90215387,3214.8,3214.4,1.90241348]
[1765421514661,0.5039,3214.8,3214.7,0.1555]
[1765421515264,2.3016,3214.8,3214.7,0.1555]
[1765421516062,1.4256,3214.8,3214.7,0.1555]
[1765421516465,2.3016,3214.8,3214.7,0.1555]
[1765421516859,2.3016,3214.2,3214.1,0.00466367]
[1765421517266,4.69985387,3214.2,3214.1,0.00466367]
[1765421517767,4.69985387,3214.2,3214.1,0.16019367]
[1765421518563,4.69985387,3214.2,3213.9,1.90241348]
[1765421518564,4.5631,3214.0,3210.8,1.90241348]
[1765421518772,1.4135,3213.6,3213.2,1.90241348]
[1765421519664,1.4135,3213.6,3213.5,0.15556]
[1765421520057,5.9766,3213.6,3213.5,0.15556]
[1765421520571,8.37485387,3213.6,3213.5,0.15556]
[1765421521266,5.9766,3212.4,3212.3,0.15562]
[1765421521470,5.97918414,3212.4,3212.3,0.15562]
[1765421521673,3.75378414,3212.4,3212.3,0.15562]
[1765421521975,1.41608414,3212.4,3212.3,0.15562]
[1765421523573,1.4135,3213.6,3212.3,9.41087981]
[1765421523875,0.00466367,3213.7,3213.6,0.15556]
[1765421524769,0.007381,3213.7,3213.6,0.15858119]
[1765421524972,0.5039,3214.2,3214.1,0.15553]
[1765421525176,1.4135,3215.1,3214.6,0.15551]
[1765421525475,2.39825387,3215.0,3214.7,0.1555]
[1765421526068,2.39825387,3215.0,3214.1,1.86068998]
[1765421526069,2.40121433,3215.0,3214.9,0.15549]
[1765421526263,3.52063079,3215.0,3214.9,0.15549]
[1765421526469,8.08373079,3215.0,3214.9,0.15549]
[1765421527265,3.52063079,3215.0,3214.9,0.15549]
[1765421527475,2.40121433,3215.0,3214.9,0.15549]
[1765421527871,4.73891433,3215.0,3214.9,0.15549]
[1765421528175,2.40121433,3215.0,3214.9,0.15549]
[1765421528874,6.96431433,3215.0,3214.9,0.15549]
[1765421529276,3.52063135,3215.0,3214.9,0.15549]
[1765421529477,2.40121433,3215.0,3214.9,0.15549]
[1765421530468,7.22321433,3215.0,3214.9,0.15549]
[1765421530673,8.34259267,3215.0,3214.9,0.15549]
[1765421531273,5.85829267,3215.0,3214.9,0.15549]
[1765421531980,3.52059267,3215.0,3214.9,0.15549]
[1765421532283,6.08909267,3215.0,3214.9,0.15549]
[1765421532477,3.52059267,3215.0,3214.9,0.15549]
[1765421532779,0.00296046,3215.0,3214.9,0.15549]
[1765421532978,0.00466367,3215.2,3214.7,1.86068998]
[1765421533176,3.982,3215.8,3215.7,0.15545]
[1765421533376,7.58548712,3215.8,3215.7,0.15545]
[1765421533578,9.98374099,3215.8,3215.7,0.15545]
[1765421534179,9.98681218,3215.8,3215.7,0.15545]
[1765421535180,4.93401218,3215.8,3215.7,0.15545]
[1765421535484,9.98681218,3215.8,3215.7,0.15545]
[1765421535872,4.93401218,3215.8,3215.7,0.15545]
[1765421536084,2.53575831,3215.8,3215.7,0.15545]
[1765421537679,9.98681218,3215.8,3215.7,0.15545]
[1765421538280,2.53575831,3215.8,3215.7,0.15545]
[1765421538677,1.41657119,3215.8,3215.7,0.15545]
[1765421539086,9.98656217,3215.8,3215.7,0.15545]
[1765421539383,1.5234,3215.4,3215.3,0.15547]
[1765421539580,2.64233711,3215.4,3215.3,0.15547]
[1765421539989,5.21083711,3215.4,3215.3,0.15547]
[1765421540181,2.64233711,3215.4,3215.3,6.15547]
[1765421540386,1.5234,3215.4,3215.3,8.01615998]
[1765421540587,1.41657119,3215.8,3215.7,0.89725]
[1765421540786,2.53557062,3215.8,3215.7,1.63905]
[1765421541292,9.98662449,3215.8,3215.7,0.15545]
[1765421541788,7.58837062,3215.8,3215.7,0.15545]
[1765421541987,9.98662449,3215.8,3215.7,0.15545]
[1765421542491,2.53557062,3215.8,3215.7,2.02345]
[1765421542683,7.58837062,3215.8,3215.7,0.15545]
[1765421543383,9.98662449,3215.8,3215.7,0.15545]
[1765421543983,7.50232449,3215.8,3215.7,0.15545]
[1765421544486,9.98662449,3215.8,3215.7,0.15545]
[1765421545994,1.62810697,3216.1,3216.0,0.15544]
[1765421545995,5.05746367,3216.1,3216.0,0.15544]
[1765421546495,7.45571754,3216.1,3216.0,0.15544]
[1765421546697,2.40291754,3216.1,3216.0,4.01481641]